bitfinex/quotes_SOLUSD_20250310
["timestamp","ask_amount","ask_price","bid_price","bid_amount"]
[1741570634480,46.40856373,127.38,127.32,38.55786373]
[1741570634686,38.55786373,127.36,127.31,38.55786373]
[1741570634888,38.55786373,127.34,127.29,46.81786373]
[1741570635079,46.41106373,127.34,127.29,46.81786373]
[1741570635281,38.55786373,127.35,127.3,38.55786373]
[1741570635865,38.55786373,127.38,127.33,38.55786373]
[1741570636071,82.4,127.39,127.34,38.55786373]
[1741570636291,38.55786373,127.39,127.35,6.5368]
[1741570637305,38.55786373,127.4,127.35,52.94696373]
[1741570637596,65.05641259,127.41,127.35,45.09466373]
[1741570637797,65.05641259,127.41,127.35,52.94686373]
[1741570638303,46.40676373,127.41,127.36,38.55786373]
[1741570638605,0.063,127.4,127.38,38.55786373]
[1741570639498,0.063,127.4,127.38,46.40826373]
[1741570639794,0.063,127.4,127.39,38.55786373]
[1741570639985,0.063,127.4,127.39,46.81786373]
[1741570640392,0.063,127.42,127.4,6.0284]
[1741570640572,0.063,127.42,127.41,40.08086373]
[1741570640775,0.063,127.42,127.41,1.523]
[1741570640991,0.063,127.42,127.4,44.58626373]
[1741570642014,0.063,127.42,127.4,52.43546373]
[1741570642192,0.063,127.42,127.41,38.55786373]
[1741570642703,0.063,127.42,127.4,6.0284]
[1741570643200,0.063,127.42,127.4,44.58626373]
[1741570643584,0.063,127.42,127.4,6.0284]
[1741570643780,38.62086373,127.42,127.37,44.88206373]
[1741570645678,38.55786373,127.41,127.37,6.3242]
[1741570645984,0.063,127.42,127.38,38.55786373]
[1741570646184,0.063,127.42,127.4,38.55786373]
[1741570646506,20.063,127.42,127.39,38.55786373]
[1741570646694,0.063,127.42,127.39,38.55786373]
[1741570646884,0.063,127.42,127.41,38.55786373]
[1741570648001,0.063,127.42,127.4,46.81786373]
[1741570649212,0.063,127.42,127.4,54.66696373]
[1741570650394,0.063,127.42,127.41,38.55786373]
[1741570651003,0.063,127.42,127.4,54.66696373]
[1741570652312,0.063,127.42,127.4,8.26]
[1741570652619,0.063,127.42,127.4,54.66706373]
[1741570652816,0.063,127.42,127.4,16.1092]
[1741570653237,0.063,127.42,127.4,54.66706373]
[1741570653446,0.063,127.44,127.41,42.19686373]
[1741570653626,0.063,127.44,127.43,38.55786373]
[1741570654111,0.063,127.44,127.42,38.55786373]
[1741570654313,0.063,127.44,127.41,60.86966373]
[1741570654504,0.063,127.44,127.42,38.55786373]
[1741570655062,0.063,127.44,127.43,38.55786373]
[1741570655937,0.063,127.44,127.42,38.55786373]
[1741570656127,0.063,127.44,127.43,46.40526373]
[1741570656326,0.063,127.44,127.43,7.8474]
[1741570656758,0.063,127.44,127.43,46.40526373]
[1741570657563,0.063,127.44,127.42,38.55786373]
[1741570657731,0.063,127.44,127.42,46.40576373]
[1741570657923,0.063,127.44,127.41,14.4634]
[1741570658228,46.46766373,127.44,127.39,163.00746373]
[1741570658450,46.46766373,127.44,127.39,46.40746373]
[1741570658962,38.55786373,127.43,127.38,47.95206373]
[1741570659260,38.55786373,127.43,127.38,38.55786373]
[1741570659958,38.55786373,127.42,127.37,44.67466373]
[1741570660165,38.55786373,127.42,127.37,52.52546373]
[1741570660365,65.05521259,127.43,127.37,52.52546373]
[1741570660772,18.64964886,127.41,127.37,38.55786373]
[1741570661050,38.55786373,127.4,127.35,46.41016373]
[1741570661250,38.55786373,127.39,127.34,233.45056373]
[1741570661455,38.55786373,127.4,127.35,38.55786373]
[1741570661659,38.55786373,127.39,127.34,225.59786373]
[1741570661858,38.55786373,127.38,127.34,187.04]
[1741570662028,38.55786373,127.37,127.31,47.98686373]
[1741570662232,46.40956373,127.36,127.31,46.41246373]
[1741570662550,38.55786373,127.35,127.3,38.55786373]
[1741570662762,38.55786373,127.33,127.29,8.27]
[1741570662942,38.55786373,127.31,127.29,0.03]
[1741570663140,57.20751259,127.3,127.29,0.03]
[1741570666354,38.55786373,127.31,127.29,0.03]
[1741570666745,58.55786373,127.3,127.29,0.03]
[1741570667558,85.06291259,127.3,127.29,0.03]
[1741570668230,77.20751259,127.3,127.29,0.03]
[1741570668859,85.06291259,127.3,127.29,0.03]
[1741570669559,20.0,127.26,127.2,225.58786373]
[1741570669763,38.55786373,127.25,127.2,225.58786373]
[1741570670638,38.55786373,127.25,127.2,233.44926373]
[1741570671163,46.41646373,127.25,127.2,187.03]
[1741570671554,38.55786373,127.24,127.2,187.03]
[1741570671758,46.41646373,127.25,127.2,187.03]
[1741570672279,46.41646373,127.25,127.2,194.8916]
[1741570672479,38.55786373,127.25,127.2,233.44946373]
[1741570672683,46.41646373,127.25,127.2,194.8915]
[1741570672974,18.64964886,127.26,127.2,194.8915]
[1741570673275,18.64964886,127.26,127.21,38.55786373]
[1741570673648,38.55786373,127.26,127.21,38.55786373]
[1741570674057,38.55786373,127.27,127.21,38.55786373]
[1741570674258,20.0,127.25,127.22,38.55786373]
[1741570674458,57.20751259,127.28,127.23,38.55786373]
[1741570674853,82.4,127.29,127.24,46.41696373]
[1741570675046,82.4,127.29,127.25,38.55786373]
[1741570675252,38.55786373,127.3,127.24,46.41696373]
[1741570675253,46.41346373,127.3,127.24,46.41696373]
[1741570675576,38.55786373,127.28,127.23,8.27]
[1741570675760,38.55786373,127.27,127.23,8.27]
[1741570677065,57.20751259,127.26,127.23,0.03]
[1741570677264,38.55786373,127.25,127.23,0.03]
[1741570678380,20.0,127.24,127.23,0.03]
[1741570678863,82.4,127.27,127.23,7.8897]
[1741570679271,82.4,127.27,127.24,38.55786373]
[1741570679681,82.4,127.27,127.23,7.8897]
[1741570679682,101.04964886,127.31,127.25,38.55786373]
[1741570679852,147.46271259,127.31,127.25,38.55786373]
[1741570680051,38.55786373,127.3,127.24,38.55786373]
[1741570680457,38.55786373,127.28,127.23,0.03]
[1741570680780,38.55786373,127.3,127.25,38.55786373]
[1741570680970,82.4,127.31,127.26,46.41576373]
[1741570681150,128.81286373,127.31,127.26,38.55786373]
[1741570681353,38.55786373,127.3,127.25,46.41616373]
[1741570681758,38.55786373,127.3,127.23,25.9446]
[1741570681759,38.55786373,127.27,127.23,0.03]
[1741570682776,38.55786373,127.28,127.23,46.44746373]
[1741570682972,38.55786373,127.28,127.23,0.03]
[1741570683170,38.55786373,127.26,127.23,0.03]
[1741570683766,38.55786373,127.25,127.23,0.03]
[1741570684060,128.54814886,127.28,127.23,0.03]
[1741570684061,20.0,127.24,127.23,0.03]
[1741570685961,46.41326373,127.3,127.23,38.58786373]
[1741570686174,38.55786373,127.28,127.23,46.82786373]
[1741570686678,122.47956373,127.32,127.25,38.55786373]
[1741570686679,26.50474886,127.31,127.25,38.55786373]
[1741570686888,65.06261259,127.31,127.26,38.55786373]
[1741570687081,65.06261259,127.31,127.26,46.41526373]
[1741570687375,65.06261259,127.31,127.23,109.4185]
[1741570687376,65.06261259,127.31,127.25,38.55786373]
[1741570687576,38.55786373,127.3,127.25,38.55786373]
[1741570688055,38.62086373,127.3,127.25,38.55786373]
[1741570688477,0.063,127.3,127.26,38.55786373]
[1741570689082,0.063,127.3,127.26,46.41546373]
[1741570689466,0.063,127.3,127.27,38.55786373]
[1741570689668,0.063,127.3,127.28,38.55786373]
[1741570690084,0.063,127.3,127.27,38.55786373]
[1741570690263,0.063,127.3,127.26,38.55786373]
[1741570690460,20.0,127.27,127.23,0.03]
[1741570690660,20.0,127.26,127.23,0.03]
[1741570691368,20.0,127.26,127.23,38.58786373]
[1741570691569,66.41576373,127.26,127.23,0.03]
[1741570691969,58.55786373,127.26,127.23,0.03]
[1741570692369,20.0,127.26,127.23,0.03]
[1741570692573,20.0,127.26,127.23,38.58786373]
[1741570692778,38.55786373,127.28,127.23,38.58786373]
[1741570693797,20.0,127.26,127.24,7.8591]
[1741570693957,57.20751259,127.29,127.24,46.41696373]
[1741570694159,0.063,127.3,127.26,38.55786373]
[1741570694375,0.063,127.3,127.27,38.55786373]
[1741570694768,38.62086373,127.3,127.25,8.24]
[1741570695083,0.063,127.3,127.27,38.55786373]
[1741570695592,0.063,127.3,127.26,38.55786373]
[1741570695773,0.063,127.3,127.27,38.55786373]
[1741570695983,0.063,127.3,127.28,7.8566]
[1741570696170,0.063,127.3,127.29,38.55786373]
[1741570697296,0.063,127.3,127.25,16.0981]
[1741570697597,38.62086373,127.3,127.25,16.0981]
[1741570697900,38.62086373,127.3,127.25,54.65596373]
[1741570698387,0.063,127.3,127.25,54.65596373]
[1741570698584,0.063,127.3,127.26,38.55786373]
[1741570699286,0.063,127.3,127.28,38.55786373]
[1741570699708,0.063,127.3,127.29,38.55786373]
[1741570700372,0.063,127.3,127.29,46.41386373]
[1741570701989,0.063,127.3,127.29,54.65386373]
[1741570702172,0.063,127.3,127.29,62.77846373]
[1741570703589,90.2506,127.38,127.29,62.77846373]
[1741570703590,82.4,127.38,127.29,102.24609869]
[1741570703791,1.6027,127.39,127.34,38.55786373]
[1741570703992,82.4,127.41,127.37,38.55786373]
[1741570704298,26.56104886,127.42,127.35,54.65006373]
[1741570704528,26.56104886,127.42,127.35,8.24]
[1741570704671,57.27051259,127.42,127.37,38.55786373]
[1741570704871,1.96879634,127.38,127.32,205.9538]
[1741570705086,38.55786373,127.37,127.32,46.41166373]
[1741570705304,40.52666007,127.38,127.32,46.41166373]
[1741570705470,40.52666007,127.38,127.33,38.55786373]
[1741570705871,38.55786373,127.37,127.31,46.79786373]
[1741570706095,46.40936373,127.37,127.31,46.79786373]
[1741570706296,57.20751259,127.35,127.29,120.05786373]
[1741570706486,57.20751259,127.35,127.29,46.41386373]
[1741570706686,57.20751259,127.35,127.3,38.55786373]
[1741570707387,1.96879634,127.34,127.3,38.55786373]
[1741570707775,1.96879634,127.34,127.3,46.41306373]
[1741570708297,1.96879634,127.34,127.31,38.55786373]
[1741570708504,1.96879634,127.34,127.32,38.55786373]
[1741570708686,1.6251,127.37,127.32,38.55786373]
[1741570708887,1.6251,127.37,127.33,38.55786373]
[1741570709388,38.55786373,127.37,127.32,38.55786373]
[1741570709690,65.05821259,127.38,127.32,38.55786373]
[1741570710002,20.0,127.37,127.32,38.55786373]
[1741570710296,57.20751259,127.38,127.32,38.55786373]
[1741570710695,18.64964886,127.38,127.33,38.55786373]
[1741570711026,1.96918442,127.36,127.33,8.24]
[1741570711189,1.96918442,127.36,127.33,206.34]
[1741570711697,1.96918442,127.36,127.33,214.1935]
[1741570712079,38.55786373,127.39,127.33,252.75136373]
[1741570712306,38.55786373,127.38,127.33,252.75136373]
[1741570712815,38.55786373,127.37,127.33,206.34]
[1741570713010,38.62086373,127.38,127.33,16.0935]
[1741570713213,40.52695762,127.37,127.33,8.24]
[1741570713618,40.52695762,127.37,127.33,16.0935]
[1741570714015,57.20751259,127.36,127.31,38.55786373]
[1741570714319,38.55786373,127.34,127.3,8.24]
[1741570714706,38.55786373,127.32,127.25,25.8285]
[1741570714903,38.55786373,127.32,127.26,7.8579]
[1741570715107,38.55786373,127.3,127.25,38.58786373]
[1741570715321,57.20751259,127.31,127.26,38.55786373]
[1741570715617,38.55786373,127.32,127.26,38.55786373]
[1741570716118,57.20751259,127.33,127.28,38.55786373]
[1741570716309,120.95786373,127.34,127.28,38.55786373]
[1741570716701,82.4,127.34,127.3,38.55786373]
[1741570717104,1.5643,127.37,127.32,38.55786373]
[1741570717303,38.62086373,127.38,127.33,38.55786373]
[1741570717718,0.063,127.38,127.33,38.55786373]
[1741570718017,0.063,127.38,127.35,38.55786373]
[1741570718221,0.063,127.38,127.36,7.8517]
[1741570718399,0.063,127.38,127.36,46.40956373]
[1741570719002,0.063,127.38,127.37,38.55786373]
[1741570720130,0.063,127.38,127.37,46.40896373]
[1741570721232,0.063,127.38,127.37,38.55786373]
[1741570721631,0.063,127.38,127.37,46.40896373]
[1741570721829,0.063,127.38,127.37,38.55786373]
[1741570722244,0.063,127.38,127.37,52.41146373]
[1741570723520,0.063,127.38,127.37,44.56036373]
[1741570723831,0.063,127.38,127.37,38.55786373]
[1741570724629,0.063,127.38,127.37,46.40896373]
[1741570725030,0.063,127.38,127.37,38.55786373]
[1741570725213,0.063,127.38,127.36,46.40936373]
[1741570725829,0.063,127.38,127.37,38.55786373]
[1741570726336,0.063,127.38,127.37,46.40896373]
[1741570729016,0.063,127.42,127.38,18.64964886]
[1741570729216,0.063,127.42,127.41,44.72466373]
[1741570729413,0.063,127.42,127.41,134.07326373]
[1741570730323,0.063,127.44,127.41,259.08139168]
[1741570730529,0.063,127.44,127.43,58.55786373]
[1741570730840,0.0001,127.44,127.43,58.55786373]
[1741570731049,0.0001,127.44,127.43,97.11572746]
[1741570731517,0.0001,127.44,127.43,66.40526373]
[1741570732034,0.063,127.46,127.44,3.5415]
[1741570732035,0.0001,127.46,127.44,3.5415]
[1741570732220,0.5,127.5,127.45,65.42751259]
[1741570732425,0.5,127.5,127.49,38.55786373]
[1741570733826,0.5,127.5,127.49,46.40156373]
[1741570734243,0.5,127.5,127.49,38.55786373]
[1741570734736,0.5,127.5,127.47,38.55786373]
[1741570734933,0.5,127.5,127.45,97.5661]
[1741570735250,0.5,127.5,127.45,128.27786373]
[1741570735419,0.5,127.5,127.46,38.55786373]
[1741570735614,8.3431,127.5,127.45,128.27786373]
[1741570736243,46.90096373,127.5,127.45,8.22]
[1741570736441,1.527,127.49,127.45,46.77786373]
[1741570737127,40.08486373,127.49,127.45,8.22]
[1741570737445,1.527,127.49,127.45,8.22]
[1741570738147,7.8443,127.48,127.44,38.55786373]
[1741570739550,9.3709,127.49,127.44,46.40456373]
[1741570740258,0.563,127.5,127.47,38.55786373]
[1741570741145,8.4062,127.5,127.45,38.55786373]
[1741570741331,46.96406373,127.5,127.44,46.77786373]
[1741570741739,46.96406373,127.5,127.44,54.62466373]
[1741570741939,38.55786373,127.49,127.44,46.77786373]
[1741570742139,46.40176373,127.49,127.44,46.77786373]
[1741570742323,46.40176373,127.49,127.44,54.62466373]
[1741570742528,46.40176373,127.49,127.44,46.77786373]
[1741570742848,38.55786373,127.48,127.43,38.55786373]
[1741570743044,38.55786373,127.47,127.42,187.06]
[1741570743252,38.55786373,127.46,127.42,187.06]
[1741570743456,40.13806373,127.46,127.41,38.55786373]
[1741570743630,38.55786373,127.44,127.39,38.55786373]
[1741570743830,38.55786373,127.42,127.37,8.2]
[1741570744251,1.5802,127.46,127.4,38.55786373]
[1741570744431,1.5802,127.46,127.37,214.1508]
[1741570744432,1.5802,127.46,127.43,38.55786373]
[1741570744761,1.5802,127.46,127.42,8.2]
[1741570744951,40.13806373,127.46,127.42,8.2]
[1741570745332,1.5802,127.46,127.43,38.55786373]
[1741570745529,90.1022,127.49,127.44,38.55786373]
[1741570745837,38.55786373,127.48,127.42,46.75786373]
[1741570746269,38.55786373,127.47,127.42,8.2]
[1741570746551,38.55786373,127.47,127.42,54.60586373]
[1741570747155,65.05191259,127.48,127.42,54.60586373]
[1741570747451,90.1022,127.49,127.43,38.55786373]
[1741570747452,128.66006373,127.49,127.43,38.55786373]
[1741570747648,38.55786373,127.48,127.43,38.55786373]
[1741570747829,90.1022,127.49,127.44,38.55786373]
[1741570748036,82.4,127.49,127.46,38.55786373]
[1741570748263,82.4,127.49,127.47,7.8449]
[1741570748445,39.12086373,127.5,127.45,7.8462]
[1741570748754,39.12086373,127.5,127.45,46.40406373]
[1741570749357,46.96396373,127.5,127.45,7.8462]
[1741570749550,8.4061,127.5,127.45,7.8462]
[1741570749855,0.063,127.49,127.45,7.8462]
[1741570751048,0.063,127.49,127.45,46.40406373]
[1741570751550,0.063,127.49,127.47,38.55786373]
[1741570752634,0.063,127.49,127.46,38.55786373]
[1741570752839,38.55786373,127.48,127.43,7.8472]
[1741570753056,38.55786373,127.48,127.43,46.40506373]
[1741570754075,57.20751259,127.47,127.42,38.58786373]
[1741570754352,1.5354,127.46,127.42,0.03]
[1741570754566,57.20751259,127.48,127.42,46.43566373]
[1741570754769,38.55786373,127.46,127.42,0.03]
[1741570755133,18.64964886,127.47,127.42,0.03]
[1741570755432,38.55786373,127.46,127.42,7.8779]
[1741570755852,38.55786373,127.47,127.42,46.43576373]
[1741570756653,46.40296373,127.47,127.42,46.43576373]
[1741570756854,38.55786373,127.45,127.42,0.03]
[1741570757033,38.55786373,127.43,127.42,0.03]
[1741570757240,38.55786373,127.44,127.42,0.03]
[1741570757535,46.10714886,127.47,127.42,0.03]
[1741570757536,38.55786373,127.45,127.42,0.03]
[1741570757736,38.55786373,127.44,127.42,0.03]
[1741570758132,46.10714886,127.47,127.42,0.03]
[1741570758356,46.40406373,127.45,127.42,0.03]
[1741570758958,84.95891259,127.43,127.42,0.03]
[1741570760053,66.30926373,127.43,127.42,0.03]
[1741570760258,21.96839095,127.43,127.42,0.03]
[1741570760756,60.52625468,127.43,127.42,0.03]
[1741570760958,21.96839095,127.43,127.42,0.03]
[1741570761131,60.52625468,127.43,127.42,0.03]
[1741570761962,58.55786373,127.43,127.42,0.03]
[1741570762155,85.05491259,127.43,127.42,0.03]
[1741570763257,20.0,127.43,127.42,0.03]
[1741570763951,57.20751259,127.45,127.42,0.03]
[1741570764570,1.96809436,127.43,127.42,0.03]
[1741570765349,1.96809436,127.43,127.42,38.58786373]
[1741570766065,1.96809436,127.43,127.42,0.03]
[1741570766439,38.55786373,127.45,127.42,0.03]
[1741570766766,38.55786373,127.44,127.42,0.03]
[1741570767864,18.64964886,127.45,127.42,0.03]
[1741570768162,57.20751259,127.45,127.42,0.03]
[1741570768556,38.55786373,127.44,127.42,0.03]
[1741570768758,46.40466373,127.44,127.42,0.03]
[1741570768959,38.55786373,127.44,127.42,0.03]
[1741570769142,38.55786373,127.45,127.42,0.03]
[1741570769342,18.71264886,127.46,127.42,0.03]
[1741570769661,1.96783807,127.44,127.42,0.03]
[1741570770540,40.5257018,127.44,127.42,0.03]
[1741570770962,1.96783807,127.44,127.42,0.03]
[1741570771645,1.96783807,127.43,127.42,0.03]
[1741570772069,20.61748693,127.43,127.42,0.03]
[1741570772267,59.17535066,127.43,127.42,0.03]
[1741570772647,60.69375066,127.43,127.42,0.03]
[1741570772850,68.54115066,127.43,127.42,0.03]
[1741570773469,3.48623807,127.43,127.42,0.03]
[1741570773772,60.69375066,127.43,127.42,0.03]
[1741570773943,68.54115066,127.43,127.42,0.03]
[1741570774144,21.96783807,127.43,127.42,0.03]
[1741570774355,1.96783807,127.43,127.42,0.03]
[1741570775545,67.02275066,127.43,127.42,0.03]
[1741570777071,149.42275066,127.43,127.42,0.03]
[1741570777264,20.0,127.39,127.34,81.5]
[1741570777572,38.55786373,127.38,127.33,38.55786373]
[1741570777742,58.55786373,127.39,127.34,38.55786373]
[1741570778166,58.55786373,127.39,127.33,38.55786373]
[1741570779068,40.16766373,127.4,127.35,38.55786373]
[1741570779255,18.64964886,127.4,127.35,38.55786373]
[1741570779455,82.4,127.41,127.36,38.55786373]
[1741570779663,82.4,127.41,127.37,38.55786373]
[1741570779868,1.96852499,127.39,127.37,46.75786373]
[1741570780166,1.96852499,127.39,127.37,8.2]
[1741570780346,40.52638872,127.39,127.34,46.41046373]
[1741570780760,1.96852499,127.39,127.34,46.41046373]
[1741570781163,57.20751259,127.39,127.33,54.61116373]
[1741570781472,38.55786373,127.38,127.33,16.0533]
[1741570781657,38.55786373,127.38,127.33,54.61116373]
[1741570781856,57.20751259,127.39,127.33,54.61116373]
[1741570782050,38.55786373,127.39,127.34,38.55786373]
[1741570783070,120.95786373,127.4,127.34,38.55786373]
[1741570783267,82.4,127.4,127.36,7.8517]
[1741570783587,18.64964886,127.41,127.36,46.40956373]
[1741570783770,38.55786373,127.42,127.36,46.40956373]
[1741570783971,141.15781259,127.43,127.38,38.55786373]
[1741570784146,45.09406373,127.45,127.39,38.55786373]
[1741570784347,38.62086373,127.46,127.4,38.55786373]
[1741570784558,18.71264886,127.46,127.41,38.55786373]
[1741570784772,1.96823845,127.42,127.41,38.55786373]
[1741570785953,1.96823845,127.42,127.4,46.40676373]
[1741570786273,46.46646373,127.46,127.4,46.40676373]
[1741570786570,38.62086373,127.46,127.4,46.40676373]
[1741570787350,38.62086373,127.46,127.44,38.55786373]
[1741570787351,0.063,127.46,127.44,38.55786373]
[1741570787554,0.063,127.46,127.45,38.55786373]
[1741570787757,0.063,127.46,127.44,38.55786373]
[1741570787976,0.063,127.46,127.43,46.75786373]
[1741570789076,0.063,127.46,127.43,54.60486373]
[1741570789577,38.62086373,127.46,127.43,8.2]
[1741570790458,38.55786373,127.45,127.4,127.90686373]
[1741570790653,38.55786373,127.43,127.39,187.02]
[1741570791105,38.55786373,127.43,127.37,38.55786373]
[1741570791378,46.40576373,127.43,127.37,46.40876373]
[1741570791686,38.55786373,127.41,127.36,46.43936373]
[1741570791850,38.55786373,127.41,127.36,38.58786373]
[1741570792483,1.96763779,127.4,127.36,38.58786373]
[1741570792693,1.96763779,127.4,127.36,46.43946373]
[1741570792985,40.52550152,127.4,127.36,0.03]
[1741570793189,48.37500152,127.4,127.36,0.03]
[1741570793483,38.55786373,127.39,127.36,0.03]
[1741570793684,38.55786373,127.37,127.36,0.03]
[1741570794375,38.55786373,127.38,127.36,0.03]
[1741570794571,18.64964886,127.39,127.36,0.03]
[1741570794775,38.55786373,127.38,127.36,0.03]
[1741570795784,40.52550152,127.38,127.36,0.03]
[1741570796579,48.37610152,127.38,127.36,0.03]
[1741570796977,1.96763779,127.37,127.36,0.03]
[1741570800181,40.52550152,127.37,127.36,0.03]
[1741570800382,1.96763779,127.37,127.36,0.03]
[1741570800582,1.96763779,127.37,127.36,38.58786373]
[1741570800771,1.96763779,127.37,127.36,0.03]
[1741570801789,1.96763779,127.39,127.36,0.03]
[1741570803184,1.96763779,127.38,127.36,0.03]
[1741570804298,1.96763779,127.37,127.36,24.13995079]
[1741570805177,1.96763779,127.37,127.36,0.03]
[1741570805395,1.96763779,127.37,127.36,24.13995079]
[1741570805595,1.96763779,127.4,127.36,24.13995079]
[1741570805802,1.96763779,127.4,127.38,24.10995079]
[1741570806304,1.96763779,127.4,127.37,31.96105079]
[1741570806999,24.10995079,127.43,127.37,31.96105079]
[1741570807403,24.10995079,127.43,127.37,7.8511]
[1741570807704,24.10995079,127.42,127.37,31.96105079]
[1741570807871,24.10995079,127.43,127.37,31.96105079]
[1741570808075,31.95745079,127.43,127.37,31.96105079]
[1741570808376,1.96822087,127.42,127.37,31.96105079]
[1741570809008,1.96822087,127.42,127.37,113.46105079]
[1741570809296,1.96822087,127.42,127.41,24.10995079]
[1741570809872,0.063,127.46,127.41,31.95855079]
[1741570809873,18.71264886,127.46,127.41,31.95855079]
[1741570810078,42.82259965,127.46,127.41,31.95855079]
[1741570810298,0.063,127.42,127.41,31.95855079]
[1741570810697,0.063,127.42,127.38,198.1]
[1741570810876,24.17295079,127.42,127.36,8.21]
[1741570811077,24.17295079,127.42,127.36,16.0614]
[1741570811276,24.17295079,127.42,127.37,24.10995079]
[1741570811480,24.17295079,127.42,127.36,40.17135079]
[1741570812087,24.17295079,127.42,127.37,24.10995079]
[1741570812396,0.063,127.42,127.38,24.10995079]
[1741570812895,1.96830819,127.41,127.39,24.10995079]
[1741570813090,1.96830819,127.41,127.4,24.10995079]
[1741570813699,1.96830819,127.41,127.39,24.10995079]
[1741570813882,1.96830819,127.41,127.36,16.0614]
[1741570814083,1.96830819,127.41,127.37,24.10995079]
[1741570814391,1.96830819,127.41,127.38,38.56333394]
[1741570814782,65.1241828,127.42,127.37,38.56333394]
[1741570814995,57.2759828,127.42,127.37,38.56333394]
[1741570815197,18.71264886,127.42,127.37,38.56333394]
[1741570816080,18.71264886,127.42,127.38,38.56333394]
[1741570816279,18.71264886,127.42,127.38,7.85]
[1741570816484,65.1240828,127.42,127.37,46.41433394]
[1741570817397,1.96818679,127.41,127.37,46.41433394]
[1741570817807,1.96818679,127.41,127.37,7.851]
[1741570818015,1.96818679,127.41,127.37,46.41433394]
[1741570818504,1.96818679,127.4,127.37,46.41433394]
[1741570819903,48.08243394,127.42,127.37,7.851]
[1741570821003,1.6711,127.42,127.37,46.41433394]
[1741570821207,1.96840782,127.41,127.38,38.56333394]
[1741570821998,1.96840782,127.41,127.37,66.04213394]
[1741570822486,1.96840782,127.41,127.37,66.07213394]
[1741570822682,1.96840782,127.41,127.37,46.44433394]
[1741570822897,1.96840782,127.4,127.37,46.44433394]
[1741570823280,1.96840782,127.4,127.39,38.56333394]
[1741570824089,1.96840782,127.4,127.38,38.56333394]
[1741570824496,0.063,127.42,127.38,38.56333394]
[1741570824996,0.063,127.42,127.4,7.8492]
[1741570825193,0.063,127.42,127.39,38.56333394]
[1741570825394,0.063,127.42,127.39,46.41303394]
[1741570825705,1.96814599,127.41,127.39,46.41303394]
[1741570826787,1.96814599,127.41,127.37,0.03]
[1741570826991,1.96814599,127.4,127.38,38.56333394]
[1741570827403,1.96814599,127.4,127.39,38.56333394]
[1741570827602,1.96814599,127.4,127.38,38.56333394]
[1741570827902,0.063,127.42,127.39,38.56333394]
[1741570829011,0.063,127.42,127.4,7.8492]
[1741570829198,1.96812922,127.41,127.38,46.41383394]
[1741570830697,1.96812922,127.4,127.38,46.41383394]
[1741570832312,0.063,127.42,127.38,46.41383394]
[1741570833713,0.063,127.42,127.38,7.8505]
[1741570834009,1.96813557,127.41,127.38,7.8505]
[1741570834206,1.96813557,127.41,127.37,46.44413394]
[1741570834418,57.2129828,127.4,127.37,0.03]
[1741570834618,57.2129828,127.38,127.37,0.03]
[1741570835304,67.03161837,127.38,127.37,0.03]
[1741570836206,113.57135231,127.38,127.37,0.03]
[1741570836520,52.727258,127.38,127.37,0.03]
[1741570836692,60.577758,127.38,127.37,0.03]
[1741570837189,52.727258,127.38,127.37,0.03]
[1741570837421,28.59418443,127.38,127.37,0.03]
[1741570837611,46.270158,127.38,127.37,0.03]
[1741570837917,54.120658,127.38,127.37,0.03]
[1741570838608,46.270158,127.38,127.37,0.03]
[1741570840307,54.120658,127.38,127.37,0.03]
[1741570840813,136.520658,127.38,127.37,0.03]
[1741570841930,160.65373157,127.38,127.37,0.03]
[1741570842430,136.520658,127.38,127.37,0.03]
[1741570842801,128.670158,127.38,127.37,0.03]
[1741570843620,84.36813557,127.38,127.37,0.03]
[1741570844127,1.96813557,127.38,127.37,0.03]
[1741570847309,1.96813557,127.38,127.37,24.16307357]
[1741570847718,1.96813557,127.38,127.37,0.03]
[1741570847923,1.96813557,127.38,127.37,24.16307357]
[1741570848131,1.96813557,127.38,127.37,32.01417357]
[1741570848326,0.063,127.42,127.37,51.64197357]
[1741570848529,0.063,127.42,127.4,24.13307357]
[1741570848708,0.063,127.42,127.39,24.13307357]